{"text_format":"1","workbook":"xlsx","n_sheets":8,"sheets":["Реестр начислений","Квитанция ПД4","Настройки","Шаблон ДШК","Шаблон ПД4","вер. 3.00 от 21.12.2016","Карточки ДШК","Реестр платежей"],"not_rendered":{"charts":0,"images":0,"macros":1,"external_links":0,"defined_names":17,"comments":0,"pivot_tables":0},"unopened":[],"bounds":{"document_bytes":16777216,"sheet_cells":100000,"rows_first":2000,"rows_last":500,"rows_between":2000,"halvings":0,"cell_chars":16384,"cell_head_chars":4096},"cells_cut":0,"cells_raw":0,"read":"whole","date_system":"1900"}

{"sheet":"Реестр начислений","index":0,"n_rows":7,"n_cols":9,"rows_kept":7,"cut":false,"hidden":false,"merged":[]}
["РЕЕСТР НАЧИСЛЕНИЙ",{"$f":"Настройки!B4&\"_\"&Настройки!B9&\"_\"&Настройки!B10&\"_\"&TEXT(TODAY(),\"ДД.ММ.ГГГГ\")&\".TXT\"","v":"5752015309_03214643000000015400_001_24.02.2026.TXT"}]
["Сумма реестра:",{"$f":"SUM(Реестр[Сумма])","v":0}]
["Количество записей:",{"$f":"COUNTA(Реестр[Сумма])","v":1}]
[]
[]
["Фамилия","Имя","Отчество","Адрес","Назначение","КБК","ОКТМО","Techcode","Сумма"]
[null,null,null,"г. Орел","Оплата за обучение Договор №","00000000000000000130","54701000","02",0]

{"sheet":"Квитанция ПД4","index":1,"n_rows":14,"n_cols":3,"rows_kept":14,"cut":false,"hidden":false,"merged":[]}
[null,null,"ПАО СБЕРБАНК                                                                            Форма №ПД-4"]
[null,"Извещение",{"$f":"Name","v":"УФК по Орловской области (ОГУ имени И. С. Тургенева  л.с. 20546Х12280)"}]
[null,null,"(наименование получателя платежа)"]
[null,null,{"$f":"\"  ИНН \"&INN&\" КПП \"&KPP&\"            \"&PersonalAcc","v":"  ИНН 5752015309 КПП 575201001            03214643000000015400"}]
[null,null,"  (инн получателя платежа)                                                    (номер счёта получателя платежа)"]
[null,null,{"$f":"\"БИК \"&BIC&\" (\"&BankName&\")\"","v":"БИК 015402901 (ОКЦ №4 ГУ БАНКА РОССИИ по ЦФО//УФК по Орловской области  г.Орел)"}]
[null,null,"(наименование банка получателя платежа)"]
[null,null,"Фамилия: ; Имя: ; Отчество: ; Адрес: г. Орел; Назначение: Оплата за обучение Договор №; КБК: 00000000000000000130; ОКТМО: 54701000; Techcode: 02"]
[null,null,"(назначение платежа)"]
[null,null,"Сумма: 0 руб. 00 коп."]
[null,null,"(сумма платежа)"]
[null,"Доступна оплата в\nмобильном приложении\nСбербанк Онлайн и в других","С условиями приёма указанной в платёжном документе суммы, в т.ч. с суммой взимаемой платы за услуги  "]
[null," каналах ПАО Сбербанк","банка, ознакомлен и согласен.                    Подпись плательщика                                        \\"]
["-----------------------------------------------------------------------------------------------------------------"]

{"sheet":"Настройки","index":2,"n_rows":45,"n_cols":22,"rows_kept":45,"cut":false,"hidden":false,"merged":[]}
["Параметр","Значение",null,null,null,null,null,null,null,null,null,null,null,null,null,null,null,null,null,"Шаблоны",null,"Поля шаблона"]
["Шаблон","ВУЗ_обучение",null,null,null,null,null,null,null,null,null,null,null,null,null,null,null,null,null,"Шаблон 1.1",null,"ФИО;Назначение;Сумма"]
["Наименование организации","УФК по Орловской области (ОГУ имени И. С. Тургенева  л.с. 20546Х12280)",null,null,null,null,null,null,null,null,null,null,null,null,null,null,null,null,null,"Шаблон 1.2",null,"Номер договора;ФИО;Сумма"]
["ИНН","5752015309",null,null,null,null,null,null,null,null,null,null,null,null,null,null,null,null,null,"Шаблон 1.3",null,"Номер договора;ФИО;Адрес;Сумма"]
["КПП","575201001",null,null,null,null,null,null,null,null,null,null,null,null,null,null,null,null,null,"Шаблон 1.4",null,"Номер договора;ФИО;Адрес;Сумма"]
["БИК","015402901",null,null,null,null,null,null,null,null,null,null,null,null,null,null,null,null,null,"Шаблон 2.1",null,"ФИО;Адрес;Назначение;Сумма"]
["Корреспондентский счет","40102810545370000046",null,null,null,null,null,null,null,null,null,null,null,null,null,null,null,null,null,"Шаблон 3.1",null,"ФИО;ФИО ребенка;Адрес;Номер учреждения;Номер группы;Лицевой счет;Период;КБК;ОКТМО;Назначение;Сумма"]
["Наименование банка","ОКЦ №4 ГУ БАНКА РОССИИ по ЦФО//УФК по Орловской области  г.Орел",null,null,null,null,null,null,null,null,null,null,null,null,null,null,null,null,null,"Шаблон 3.2",null,"ФИО;Адрес;ФИО ребенка;Сумма"]
["Расчетный счет","03214643000000015400",null,null,null,null,null,null,null,null,null,null,null,null,null,null,null,null,null,"Шаблон 3.3",null,"ФИО студента;ФИО;Номер группы;Номер договора;Период;Сумма"]
["Код услуги","001",null,null,null,null,null,null,null,null,null,null,null,null,null,null,null,null,null,"Шаблон 3.4",null,"Лицевой счет;ФИО ребенка;Номер группы;Период;Назначение;КБК;ОКТМО;Сумма"]
["Каталог для выгрузки реестра","D:\\USers\\Bank_Office\\Desktop\\",null,null,null,null,null,null,null,null,null,null,null,null,null,null,null,null,null,"Шаблон 3.5",null,"ФИО;Адрес;ФИО ребенка;Период;КБК;ОКТМО;Сумма"]
["Дополнительные параметры ДШК",null,null,null,null,null,null,null,null,null,null,null,null,null,null,null,null,null,null,"Шаблон 3.6",null,"ФИО ребенка;Период;КБК;ОКТМО;Сумма"]
[null,null,null,null,null,null,null,null,null,null,null,null,null,null,null,null,null,null,null,"Шаблон 3.7",null,"ФИО ребенка;Лицевой счет;Номер группы;Адрес;КБК;ОКТМО;Сумма"]
[null,null,null,null,null,null,null,null,null,null,null,null,null,null,null,null,null,null,null,"Шаблон 3.8",null,"Фамилия;Имя;Отчество;Адрес;Назначение;КБК;ОКТМО;Сумма"]
[null,null,null,null,null,null,null,null,null,null,null,null,null,null,null,null,null,null,null,"Шаблон 3.9",null,"ФИО;Адрес;Тип средств;Назначение;КБК;ОКТМО;Сумма"]
[null,null,null,null,null,null,null,null,null,null,null,null,null,null,null,null,null,null,null,"Шаблон 3.10",null,"ФИО;ФИО ребенка;Адрес;Номер группы;Лицевой счет;Назначение;Сумма"]
[null,null,null,null,null,null,null,null,null,null,null,null,null,null,null,null,null,null,null,"Шаблон 3.11",null,"ФИО;Адрес;Назначение;КБК;ОКТМО;Вид ДУЛ;Номер ДУЛ;Сумма"]
[null,null,null,null,null,null,null,null,null,null,null,null,null,null,null,null,null,null,null,"Шаблон 3.12",null,"Лицевой счет;ФИО;Адрес;КБК;ОКТМО;Сумма"]
[null,null,null,null,null,null,null,null,null,null,null,null,null,null,null,null,null,null,null,"Шаблон 3.13(для квитанций)",null,"ФИО;ФИО ребенка;Назначение;КБК;ОКТМО;Сумма"]
[null,null,null,null,null,null,null,null,null,null,null,null,null,null,null,null,null,null,null,"Шаблон 3.13(для ФБЗ)",null,"Назначение;КБК;ОКТМО"]
[null,null,null,null,null,null,null,null,null,null,null,null,null,null,null,null,null,null,null,"Шаблон 3.15",null,"ФИО;ФИО студента;Номер группы;Номер курса;Вид дохода;Сумма"]
[null,null,null,null,null,null,null,null,null,null,null,null,null,null,null,null,null,null,null,"Шаблон 3.16",null,"Лицевой счет;ФИО;Наименование МОУ;Группа/Кружок;КБК;ОКТМО;Сумма"]
[null,null,null,null,null,null,null,null,null,null,null,null,null,null,null,null,null,null,null,"Шаблон 4.1",null,"ФИО;Адрес;КБК;ОКТМО;УИН;СНИЛС;ИНН плательщика;Номер ДУЛ;Назначение;Сумма"]
[null,null,null,null,null,null,null,null,null,null,null,null,null,null,null,null,null,null,null,"Шаблон 5.1",null,"ФИО;Адрес;Сумма"]
[null,null,null,null,null,null,null,null,null,null,null,null,null,null,null,null,null,null,null,"Шаблон 6.1",null,"Лицевой счет;Сумма"]
[null,null,null,null,null,null,null,null,null,null,null,null,null,null,null,null,null,null,null,"Шаблон 7.1",null,"Лицевой счет;ФИО;Сумма"]
[null,null,null,null,null,null,null,null,null,null,null,null,null,null,null,null,null,null,null,"Шаблон 8.1",null,"Лицевой счет;Адрес;Сумма"]
[null,null,null,null,null,null,null,null,null,null,null,null,null,null,null,null,null,null,null,"Шаблон 8.2",null,"Лицевой счет;Адрес;Сумма;Период"]
[null,null,null,null,null,null,null,null,null,null,null,null,null,null,null,null,null,null,null,"Шаблон 10.1",null,"Лицевой счет;ФИО;Адрес;Сумма"]
[null,null,null,null,null,null,null,null,null,null,null,null,null,null,null,null,null,null,null,"Шаблон 10.2",null,"Лицевой счет;ФИО;Адрес;Период;Сумма"]
[null,null,null,null,null,null,null,null,null,null,null,null,null,null,null,null,null,null,null,"Шаблон 10.3",null,"Лицевой счет;ФИО;Адрес;Сумма"]
[null,null,null,null,null,null,null,null,null,null,null,null,null,null,null,null,null,null,null,"Шаблон 10.4",null,"Лицевой счет;Фамилия;Имя;Отчество;Адрес;Назначение;Сумма"]
[null,null,null,null,null,null,null,null,null,null,null,null,null,null,null,null,null,null,null,"Шаблон 10.5",null,"Лицевой счет;ФИО;Адрес;Сумма;Назначение"]
[null,null,null,null,null,null,null,null,null,null,null,null,null,null,null,null,null,null,null,"Шаблон 11.1",null,"Лицевой счет;Период;Сумма"]
[null,null,null,null,null,null,null,null,null,null,null,null,null,null,null,null,null,null,null,"Шаблон 14.1",null,"Лицевой счет;ФИО;Адрес;Период;Сумма;Наименование счетчика1;Предыдущее показание счетчика 1;Наименование счетчика2;Предыдущее показание счетчика 2;Наименование счетчика3;Предыдущее показание счетчика 3;Наименование счетчика4;Предыдущее показание счетчика 4;Наименование счетчика5;Предыдущее показание счетчика 5;Наименование счетчика6;Предыдущее показание счетчика 6;Наименование счетчика7;Предыдущее показание счетчика 7;Наименование счетчика8;Предыдущее показание счетчика 8;Наименование счетчика9;Предыдущее показание счетчика 9;Наименование счетчика10;Предыдущее показание счетчика 10;Наименование счетчика11;Предыдущее показание счетчика 11;Наименование счетчика12;Предыдущее показание счетчика 12"]
[null,null,null,null,null,null,null,null,null,null,null,null,null,null,null,null,null,null,null,"Шаблон 3.8 (ФБЗ)",null,"Назначение;КБК;ОКТМО"]
[null,null,null,null,null,null,null,null,null,null,null,null,null,null,null,null,null,null,null,"Шаблон 9.1",null,"Лицевой счет;ФИО;Адрес;Период;Наименование услуги1;Код услуги1;Сумма1;Наименование услуги2;Код услуги2;Сумма2;Наименование услуги3;Код услуги3;Сумма3;Наименование услуги4;Код услуги4;Сумма4;Наименование услуги5;Код услуги5;Сумма5;Наименование услуги6;Код услуги6;Сумма6;Наименование услуги7;Код услуги7;Сумма7;Наименование услуги8;Код услуги8;Сумма8;Наименование услуги9;Код услуги9;Сумма9;Наименование услуги10;Код услуги10;Сумма10;Наименование услуги11;Код услуги11;Сумма11;Наименование услуги12;Код услуги12;Сумма12;"]
[null,null,null,null,null,null,null,null,null,null,null,null,null,null,null,null,null,null,null,"Шаблон 13.1",null,"Лицевой счет;Период;Счетчик холодной воды 1;Счетчик холодной воды 2;Счетчик холодной воды 3;Счетчик горячей воды 1;Счетчик горячей воды 2;Счетчик горячей воды 3;Счетчик электроэнергии 1;Счетчик электроэнергии 2;Сумма"]
[null,null,null,null,null,null,null,null,null,null,null,null,null,null,null,null,null,null,null,"Шаблон 13.2",null,"Лицевой счет;ФИО;Адрес;Предыдущие показания ХВС (счетчик №1);Текущие показания ХВС (счетчик №1);Предыдущие показания ХВС (счетчик №2);Текущие показания ХВС (счетчик №2);Предыдущие показания ХВС (счетчик №3);Текущие показания ХВС (счетчик №3);Предыдущие показания ХВС (счетчик №4);Текущие показания ХВС (счетчик №4);Сумма"]
[null,null,null,null,null,null,null,null,null,null,null,null,null,null,null,null,null,null,null,"Минюст_ФКП_Росимущество",null,"Назначение;КБК;ОКТМО;Сумма"]
[null,null,null,null,null,null,null,null,null,null,null,null,null,null,null,null,null,null,null,"МВД",null,"КБК;ОКТМО;Techcode;Сумма"]
[null,null,null,null,null,null,null,null,null,null,null,null,null,null,null,null,null,null,null,"ФНС",null,"Назначение;КБК;ОКТМО;Techcode;Сумма"]
[null,null,null,null,null,null,null,null,null,null,null,null,null,null,null,null,null,null,null,"Росреестр",null,"КБК;ОКТМО;Сумма"]
[null,null,null,null,null,null,null,null,null,null,null,null,null,null,null,null,null,null,null,"ВУЗ_обучение",null,"Фамилия;Имя;Отчество;Адрес;Назначение;КБК;ОКТМО;Techcode;Сумма"]
[null,null,null,null,null,null,null,null,null,null,null,null,null,null,null,null,null,null,null,"ВУЗ_Общежите",null,"ФИО;ФИО ребенка;Адрес;Номер группы;Лицевой счет;Назначение;Techcode;Сумма"]

{"sheet":"Шаблон ДШК","index":3,"n_rows":47,"n_cols":25,"rows_kept":47,"cut":false,"hidden":true,"merged":[[55,1,56,13],[55,24,56,36],[58,1,62,13],[58,24,62,36],[51,1,52,13],[51,24,52,36],[53,1,54,13],[53,24,54,36],[37,1,41,13],[37,24,41,36],[43,0,44,22],[43,23,44,45],[46,1,50,13],[46,24,50,36],[22,0,23,22],[22,23,23,45],[25,1,29,13],[25,24,29,36],[34,1,35,13],[34,24,35,36],[30,1,31,13],[30,24,31,36],[32,1,33,13],[32,24,33,36],[11,1,12,13],[11,24,12,36],[13,1,14,13],[13,24,14,36],[16,1,20,13],[16,24,20,36],[1,23,2,45],[4,1,8,13],[1,0,3,22],[4,24,8,36],[9,1,10,13],[9,24,10,36]]}
[]
[{"$f":"Name","v":"УФК по Орловской области (ОГУ имени И. С. Тургенева  л.с. 20546Х12280)"},null,null,null,null,null,null,null,null,null,null,null,null,null,null,null,null,null,null,null,null,null,null,{"$f":"Name","v":"УФК по Орловской области (ОГУ имени И. С. Тургенева  л.с. 20546Х12280)"}]
[]
[]
[null,{"$f":"\"ИНН \"&INN&\", БИК \"&BIC&\", Р/С \"&PersonalAcc","v":"ИНН 5752015309, БИК 015402901, Р/С 03214643000000015400"},null,null,null,null,null,null,null,null,null,null,null,null,null,null,null,null,null,null,null,null,null,null,{"$f":"\"ИНН \"&INN&\", БИК \"&BIC&\", Р/С \"&PersonalAcc","v":"ИНН 5752015309, БИК 015402901, Р/С 03214643000000015400"}]
[]
[]
[]
[]
[]
[]
[]
[]
[]
[]
[]
[]
[]
[]
[]
[]
[]
[{"$f":"Name","v":"УФК по Орловской области (ОГУ имени И. С. Тургенева  л.с. 20546Х12280)"},null,null,null,null,null,null,null,null,null,null,null,null,null,null,null,null,null,null,null,null,null,null,{"$f":"Name","v":"УФК по Орловской области (ОГУ имени И. С. Тургенева  л.с. 20546Х12280)"}]
[]
[]
[null,{"$f":"\"ИНН \"&INN&\", БИК \"&BIC&\", Р/С \"&PersonalAcc","v":"ИНН 5752015309, БИК 015402901, Р/С 03214643000000015400"},null,null,null,null,null,null,null,null,null,null,null,null,null,null,null,null,null,null,null,null,null,null,{"$f":"\"ИНН \"&INN&\", БИК \"&BIC&\", Р/С \"&PersonalAcc","v":"ИНН 5752015309, БИК 015402901, Р/С 03214643000000015400"}]
[]
[]
[]
[]
[]
[]
[]
[]
[]
[]
[]
[]
[]
[]
[]
[]
[]
[{"$f":"Name","v":"УФК по Орловской области (ОГУ имени И. С. Тургенева  л.с. 20546Х12280)"},null,null,null,null,null,null,null,null,null,null,null,null,null,null,null,null,null,null,null,null,null,null,{"$f":"Name","v":"УФК по Орловской области (ОГУ имени И. С. Тургенева  л.с. 20546Х12280)"}]
[]
[]
[null,{"$f":"\"ИНН \"&INN&\", БИК \"&BIC&\", Р/С \"&PersonalAcc","v":"ИНН 5752015309, БИК 015402901, Р/С 03214643000000015400"},null,null,null,null,null,null,null,null,null,null,null,null,null,null,null,null,null,null,null,null,null,null,{"$f":"\"ИНН \"&INN&\", БИК \"&BIC&\", Р/С \"&PersonalAcc","v":"ИНН 5752015309, БИК 015402901, Р/С 03214643000000015400"}]

{"sheet":"Шаблон ПД4","index":4,"n_rows":14,"n_cols":3,"rows_kept":14,"cut":false,"hidden":true,"merged":[]}
[null,null,"ПАО СБЕРБАНК                                                                            Форма №ПД-4"]
[null,"Извещение",{"$f":"Name","v":"УФК по Орловской области (ОГУ имени И. С. Тургенева  л.с. 20546Х12280)"}]
[null,null,"(наименование получателя платежа)"]
[null,null,{"$f":"\"  ИНН \"&INN&\" КПП \"&KPP&\"            \"&PersonalAcc","v":"  ИНН 5752015309 КПП 575201001            03214643000000015400"}]
[null,null,"  (инн получателя платежа)                                                    (номер счёта получателя платежа)"]
[null,null,{"$f":"\"БИК \"&BIC&\" (\"&BankName&\")\"","v":"БИК 015402901 (ОКЦ №4 ГУ БАНКА РОССИИ по ЦФО//УФК по Орловской области  г.Орел)"}]
[null,null,"(наименование банка получателя платежа)"]
[]
[null,null,"(назначение платежа)"]
[]
[null,null,"(сумма платежа)"]
[null,"Доступна оплата в\nмобильном приложении\nСбербанк Онлайн и в других","С условиями приёма указанной в платёжном документе суммы, в т.ч. с суммой взимаемой платы за услуги  "]
[null," каналах ПАО Сбербанк","банка, ознакомлен и согласен.                    Подпись плательщика                                        \\"]
["-----------------------------------------------------------------------------------------------------------------"]

{"sheet":"вер. 3.00 от 21.12.2016","index":5,"n_rows":10,"n_cols":2,"rows_kept":10,"cut":false,"hidden":true,"merged":[]}
["Инструкция по заполнению файла"]
[1,"Для корректного формирования текстового файла нужно использовать Excel  2007, 2010."]
[2,"Перед формированием файла на вкладке \"Настройка\" необходимо указать шаблон Сбербанка, расчетные реквизиты организации, каталог для выгрузки текстовых файлов, указать номер услуги. Если вы предоставляете реестр только по одной услуге - укажите 001"]
[3,"Во вкадке \"Настройка\" все поля обязательны для заполнения"]
[4,"Значения полей \"Лицевой счет\"/\"Номер договора\" являются ключевыми и они не должны дублироваться для одного реестра."]
[5,"В поле \"Лицевой счет\"/\"Номер договора\" разрешен ввод русских и латинских букв, цифр, символа «-»."]
[6,"В поле \"ФИО\" разрешен ввод русских букв, пробела и символа «-»."]
[7,"В поле \"Адрес\" разрешен ввод русских букв, цифр, запятой, точки, пробела, символов \"-\" и \"/\"."]
[8,"Если данные содержат ошибки, реестр или картчоки ДШК сформировать будет невозможно. "]
[9,"Сформированный файл передается в банк способом, установленным договором."]

{"sheet":"Карточки ДШК","index":6,"n_rows":47,"n_cols":25,"rows_kept":47,"cut":false,"hidden":true,"merged":[[1,0,3,22],[1,23,2,45],[4,1,8,13],[4,24,8,36],[9,1,10,13],[9,24,10,36],[11,1,12,13],[11,24,12,36],[13,1,14,13],[13,24,14,36],[16,1,20,13],[16,24,20,36],[22,0,23,22],[22,23,23,45],[25,1,29,13],[25,24,29,36],[30,1,31,13],[30,24,31,36],[32,1,33,13],[32,24,33,36],[34,1,35,13],[34,24,35,36],[37,1,41,13],[37,24,41,36],[43,0,44,22],[43,23,44,45],[46,1,50,13],[46,24,50,36],[51,1,52,13],[51,24,52,36],[53,1,54,13],[53,24,54,36],[55,1,56,13],[55,24,56,36],[58,1,62,13],[58,24,62,36]]}
[]
[{"$f":"Name","v":"УФК по Орловской области (ОГУ имени И. С. Тургенева  л.с. 20546Х12280)"},null,null,null,null,null,null,null,null,null,null,null,null,null,null,null,null,null,null,null,null,null,null,{"$f":"Name","v":"УФК по Орловской области (ОГУ имени И. С. Тургенева  л.с. 20546Х12280)"}]
[]
[]
[null,{"$f":"\"ИНН \"&INN&\", БИК \"&BIC&\", Р/С \"&PersonalAcc","v":"ИНН 5752015309, БИК 015402901, Р/С 03214643000000015400"},null,null,null,null,null,null,null,null,null,null,null,null,null,null,null,null,null,null,null,null,null,null,{"$f":"\"ИНН \"&INN&\", БИК \"&BIC&\", Р/С \"&PersonalAcc","v":"ИНН 5752015309, БИК 015402901, Р/С 03214643000000015400"}]
[]
[]
[]
[]
[null,"ЛС: 8563"]
[]
[null,"рпв"]
[]
[null,"Сумма: 8596.00"]
[]
[]
[null,"ртопа"]
[]
[]
[]
[]
[]
[{"$f":"Name","v":"УФК по Орловской области (ОГУ имени И. С. Тургенева  л.с. 20546Х12280)"},null,null,null,null,null,null,null,null,null,null,null,null,null,null,null,null,null,null,null,null,null,null,{"$f":"Name","v":"УФК по Орловской области (ОГУ имени И. С. Тургенева  л.с. 20546Х12280)"}]
[]
[]
[null,{"$f":"\"ИНН \"&INN&\", БИК \"&BIC&\", Р/С \"&PersonalAcc","v":"ИНН 5752015309, БИК 015402901, Р/С 03214643000000015400"},null,null,null,null,null,null,null,null,null,null,null,null,null,null,null,null,null,null,null,null,null,null,{"$f":"\"ИНН \"&INN&\", БИК \"&BIC&\", Р/С \"&PersonalAcc","v":"ИНН 5752015309, БИК 015402901, Р/С 03214643000000015400"}]
[]
[]
[]
[]
[]
[]
[]
[]
[]
[]
[]
[]
[]
[]
[]
[]
[]
[{"$f":"Name","v":"УФК по Орловской области (ОГУ имени И. С. Тургенева  л.с. 20546Х12280)"},null,null,null,null,null,null,null,null,null,null,null,null,null,null,null,null,null,null,null,null,null,null,{"$f":"Name","v":"УФК по Орловской области (ОГУ имени И. С. Тургенева  л.с. 20546Х12280)"}]
[]
[]
[null,{"$f":"\"ИНН \"&INN&\", БИК \"&BIC&\", Р/С \"&PersonalAcc","v":"ИНН 5752015309, БИК 015402901, Р/С 03214643000000015400"},null,null,null,null,null,null,null,null,null,null,null,null,null,null,null,null,null,null,null,null,null,null,{"$f":"\"ИНН \"&INN&\", БИК \"&BIC&\", Р/С \"&PersonalAcc","v":"ИНН 5752015309, БИК 015402901, Р/С 03214643000000015400"}]

{"sheet":"Реестр платежей","index":7,"n_rows":64,"n_cols":14,"rows_kept":64,"cut":false,"hidden":true,"merged":[]}
[]
[]
[]
["15-02-2017","08-03-44","9013/00909","901300909","101501464353","000000753","КУДРИН,ИВАН ,ГРИГОРЬЕВИЧ","С ПОКРОВКА УЛ МОЛОДЕЖНАЯ Д 9","0217","42,28","41,01","1,27","ХОЛОДНОЕ ВОДОСНАБЖЕНИЕ","61"]
["15-02-2017","08-37-57","9013/00909","901300909","250590792335","000001742","ШТУКАН,МАРИЯ ,БОРИСОВНА","С КОРОТОЯК УЛ НИЗОВАЯ Д 15/1","0217","84,56","82,02","2,54","ХОЛОДНОЕ ВОДОСНАБЖЕНИЕ","267"]
["15-02-2017","08-38-10","9013/00909","901300909","250590793218","000001814","СТОРОЖЕНКО,КОНСТАНТИН ,ЯКОВЛЕВИЧ","С КОРОТОЯК ПРОСПЕКТ РЕВОЛЮЦИИ Д 9","0217","42,28","41,01","1,27","ХОЛОДНОЕ ВОДОСНАБЖЕНИЕ","166"]
["15-02-2017","08-43-49","9013/00909","901300909","101501491578","000000405","КАМЕНЕВА,МАРИЯ ,БОРИСОВНА","С ПОКРОВКА УЛ КАРЛА МАРКСА Д 65","0217","343,32","333,02","10,30","ХОЛОДНОЕ ВОДОСНАБЖЕНИЕ",""]
["15-02-2017","08-50-36","9013/00909","901300909","250590841425","000001466","АБРАМОВ,Н ,М","С УСПЕНСКОЕ УЛ БОЛХОВИТИНА Д87","0217","380,52","369,10","11,42","ХОЛОДНОЕ ВОДОСНАБЖЕНИЕ","72"]
["15-02-2017","08-55-56","9013/00909","901300909","250590862130","000000698","КЛЕВЦОВА,ЖАННА ,ВИКТОРОВНА","С КОРОТОЯК УЛ ОКТЯБРЬСКАЯ Д 33 КВ 7","0217","84,56","82,02","2,54","ХОЛОДНОЕ ВОДОСНАБЖЕНИЕ","86"]
["15-02-2017","09-37-31","9013","9013999V","200588965432","000000803","НЕНАШЕВ,УТКИР ,ДАНИЛОВИЧ","С ПОКРОВКА УЛ МОЛОДЕЖНАЯ Д 78","0217","211,40","209,29","2,11","ХОЛОДНОЕ ВОДОСНАБЖЕНИЕ","47"]
["15-02-2017","09-49-21","9013/00909","901300909V","200589025816","000000096","ГЕРАСИМОВА,ЕВДОКИЯ , ВАСИЛЬЕВНА","С КОРОТОЯК УЛ ПРОЛЕТАРСКАЯ Д 46","0217","84,56","82,02","2,54","ХОЛОДНОЕ ВОДОСНАБЖЕНИЕ","126"]
["15-02-2017","09-52-45","9013/00909","901300909","200589042624","000001556","ЧЕРКАСОВ,А ,А","С ПОКРОВКА ПОБЕДЫ Д 5А","0217","169,12","164,05","5,07","ХОЛОДНОЕ ВОДОСНАБЖЕНИЕ","333"]
["15-02-2017","10-07-09","9013/00909","901300909","250591206261","000212681","ДАНЬШИНА,КЛАВДИЯ ,ВАСИЛЬЕВНА","С КОРОТОЯК УЛ ОКТЯБРЬСКАЯ Д 33 КВ 5","0217","211,40","205,06","6,34","ХОЛОДНОЕ ВОДОСНАБЖЕНИЕ","212"]
["15-02-2017","10-12-19","9013/00909","901300909","250591235270","000000693","МОСКАЛЕВА,НИНА ,МИХАЙЛОВНА","С КОРОТОЯК УЛ ОКТЯБРЬСКАЯ Д 33 КВ 1","0217","211,40","205,06","6,34","ХОЛОДНОЕ ВОДОСНАБЖЕНИЕ","475"]
["15-02-2017","10-13-51","9013/00909","901300909","250591243407","000213009","КУДРИН,НИКОЛАЙ ,ГРИГОРЬЕВИЧ","С КОРОТОЯК УЛ СВОБОДЫ Д 26","0217","84,56","82,02","2,54","ХОЛОДНОЕ ВОДОСНАБЖЕНИЕ","143"]
["15-02-2017","10-21-49","9013/00909","901300909","200589192932","000414238","ОРЕШИНА,ГАЛИНА ,ПЕТРОВНА","С КОРОТОЯК УЛ ПРОЛЕТАРСКАЯ Д 51","0217","343,32","333,02","10,30","ХОЛОДНОЕ ВОДОСНАБЖЕНИЕ","0"]
["15-02-2017","10-24-57","9013/00909","901300909","250591302196","000001636","ХУДОБИН,ЮРИЙ ,ИВАНОВИЧ","С КОРОТОЯК УЛ ПРОЛЕТАРСКАЯ Д 33/1","0217","63,42","61,52","1,90","ХОЛОДНОЕ ВОДОСНАБЖЕНИЕ",""]
["15-02-2017","10-25-43","9013/00909","901300909","200589214078","000001624","ИВАНОВА,АННА ,АЛЕКСЕЕВНА","С КОРОТОЯК УЛ ПРОЛЕТАРСКАЯ Д 26/1","0217","42,28","41,01","1,27","ХОЛОДНОЕ ВОДОСНАБЖЕНИЕ","66"]
["15-02-2017","10-52-18","9013/00909","901300909","200589355955","000041105","ПЛОТНИКОВА,Н , А","С ПЕТРОПАВЛОВКА УЛ СТЕПНАЯ Д 5","0217","169,12","164,05","5,07","ХОЛОДНОЕ ВОДОСНАБЖЕНИЕ","155"]
["15-02-2017","10-57-12","9013/00909","901300909","200589381922","000000264","ДОНИЙ,ВИКТОР ,ПАВЛОВИЧ","С КОРОТОЯК УЛ СВОБОДЫ Д 4","0217","169,12","164,05","5,07","ХОЛОДНОЕ ВОДОСНАБЖЕНИЕ","83"]
["15-02-2017","11-03-40","9013/00909","901300909","250591510490","000001771","КОВРОВА,В ,А","С ПОКРОВКА ТОРГОВЫЙ Д16","0217","42,28","41,01","1,27","ХОЛОДНОЕ ВОДОСНАБЖЕНИЕ","142"]
["15-02-2017","11-04-17","9013/00909","901300909","250591513703","000213515","МИТИЧКИН,М ,Н","С КОРОТОЯК ПРОЛЕТАРСКАЯ Д70","0217","169,12","164,05","5,07","ХОЛОДНОЕ ВОДОСНАБЖЕНИЕ","257"]
["15-02-2017","11-04-19","9013/00909","901300909","101501650813","000000394","СЕНЧИЩЕВА,НИНА ,НИКОЛАЕВНА","С ПОКРОВКА УЛ КАРЛА МАРКСА Д 50","0217","126,84","123,03","3,81","ХОЛОДНОЕ ВОДОСНАБЖЕНИЕ","185"]
["15-02-2017","11-04-54","9013/00909","901300909","250591517079","000004530","ПАРШИН,Н , И","С ПЕТРОПАВЛОВКА УЛ ПРОЛЕТАРСКАЯ Д 53","0217","75,68","73,41","2,27","ХОЛОДНОЕ ВОДОСНАБЖЕНИЕ",""]
["15-02-2017","11-06-57","9013/00909","901300909","250591527829","000001821","ГУСЕВА,О ,Н","С ПОКРОВКА ПИОНЕРСКИЙ Д13","0217","422,80","410,12","12,68","ХОЛОДНОЕ ВОДОСНАБЖЕНИЕ","222"]
["15-02-2017","11-11-26","9013/00909","901300909","250591551926","000001812","КАМИНСКАЯ,ОКСАНА ,МИХАЙЛОВНА","С КОРОТОЯК УЛ НИЗОВАЯ Д 78","0217","211,40","205,06","6,34","ХОЛОДНОЕ ВОДОСНАБЖЕНИЕ","210"]
["15-02-2017","11-38-35","9013/00909","901300909","200589599975","000001695","МИРОНОВА,ВАЛЕНТИНА ,НИКОЛАЕВНА","С КОРОТОЯК УЛ Ф ЭНГЕЛЬСА Д 10","0217","211,40","205,06","6,34","ХОЛОДНОЕ ВОДОСНАБЖЕНИЕ","185"]
["15-02-2017","11-42-09","9013/00909","901300909","200589619447","000001281","КУПАЕВ,ВАСИЛИЙ ,АЛЕКСЕЕВИЧ","С КОРОТОЯК УЛ Ф ЭНГЕЛЬСА Д 25","0217","169,12","164,05","5,07","ХОЛОДНОЕ ВОДОСНАБЖЕНИЕ","97"]
["15-02-2017","11-48-58","9013/00909","901300909V","250591750418","000213671","ДУКИНА,В , И","С ПЕТРОПАВЛОВКА УЛ СВОБОДЫ Д 64","0217","343,32","333,02","10,30","ХОЛОДНОЕ ВОДОСНАБЖЕНИЕ",""]
["15-02-2017","11-55-41","9013/00909","901300909","200589692182","000001613","ПОПОВ,НИКОЛАЙ , ИВАНОВИЧ","С КОРОТОЯК УЛ ПРОЛЕТАРСКАЯ Д 18/1","0217","42,28","41,01","1,27","ХОЛОДНОЕ ВОДОСНАБЖЕНИЕ","102"]
["15-02-2017","11-57-48","9013/00909","901300909","200589703323","000000282","МЕДВЕДЕВА,РАИСА ,ТИМОФЕЕВНА","С КОРОТОЯК УЛ СВОБОДЫ Д 29","0217","75,68","73,41","2,27","ХОЛОДНОЕ ВОДОСНАБЖЕНИЕ","0"]
["15-02-2017","11-58-00","9013/00909","901300909","200589704449","000000805","ТАВЛИНОВ,ИВАН ,ДМИТРИЕВИЧ","С ПОКРОВКА УЛ МОЛОДЕЖНАЯ Д 79","0217","338,24","328,09","10,15","ХОЛОДНОЕ ВОДОСНАБЖЕНИЕ","563"]
["15-02-2017","12-23-12","9013/00909","901300909V","101501747784","000001346","ЖАЛЬСКИХ,ПЕТР ,АЛЕКСЕЕВИЧ","С КОРОТОЯК УЛ ЛЕНИНА Д 17","0217","253,68","246,07","7,61","ХОЛОДНОЕ ВОДОСНАБЖЕНИЕ","226"]
["15-02-2017","12-28-00","9013/00909","901300909","200589865530","000004536","ГОЛОВИНА,С , М","С ПЕТРОПАВЛОВКА УЛ ПРОЛЕТАРСКАЯ Д 60/1","0217","75,68","73,41","2,27","ХОЛОДНОЕ ВОДОСНАБЖЕНИЕ",""]
["15-02-2017","12-28-20","9013/00909","901300909","200589867338","000004529","ГОЛОВИНА,Т , П","С ПЕТРОПАВЛОВКА УЛ ПРОЛЕТАРСКАЯ Д 52","0217","42,28","41,01","1,27","ХОЛОДНОЕ ВОДОСНАБЖЕНИЕ","28"]
["15-02-2017","12-33-57","9013/00909","901300909","200589897783","000001357","ВАСЬКО,ГАЛИНА ,ВАЛЕНТИНОВНА","С КОРОТОЯК УЛ ВОЛОДАРСКОГО Д 15","0217","42,28","41,01","1,27","ХОЛОДНОЕ ВОДОСНАБЖЕНИЕ","101"]
["15-02-2017","12-44-41","9013/00909","901300909","250592051728","000000641","МАКОГОНОВА,ОКСАНА ,ВИКТОРОВНА","С КОРОТОЯК УЛ СТЕПАНА РАЗИНА Д 134","0217","507,36","492,14","15,22","ХОЛОДНОЕ ВОДОСНАБЖЕНИЕ","466"]
["15-02-2017","12-53-34","9013/00909","901300909","101501786095","000001403","ЧЕКМЕЗОВ,И ,Г","С ПОКРОВКА СПОРТИВНАЯ Д47","0217","380,52","369,10","11,42","ХОЛОДНОЕ ВОДОСНАБЖЕНИЕ","476"]
["15-02-2017","14-02-02","9013/00909","901300909","101501863477","000000449","ЕМЕЛЬЯНОВА,МАРИЯ ,ВИКТОРОВНА","С ПОКРОВКА УЛ СТЕПАНА РАЗИНА Д 4","0217","42,28","41,01","1,27","ХОЛОДНОЕ ВОДОСНАБЖЕНИЕ","197"]
["15-02-2017","14-04-59","9013/00909","901300909V","200590356972","000006121","ЧЕРЕЧУКИНА,ВАЛЕНТИНА ,НИКОЛАЕВНА","С ПОКРОВКА УЛ СТЕПАНА РАЗИНА Д 2","0217","42,28","41,01","1,27","ХОЛОДНОЕ ВОДОСНАБЖЕНИЕ","62"]
["15-02-2017","14-08-08","9013/00909","901300909","200590371415","000001376","МИХАЙЛОВА,ТАТЬЯНА ,ГЕОРГИЕВНА","С КОРОТОЯК УЛ КОМИНТЕРНА Д 13 КВ 8","0217","887,88","861,24","26,64","ХОЛОДНОЕ ВОДОСНАБЖЕНИЕ","209"]
["15-02-2017","14-08-47","9013/00909","901300909","250592471318","000000339","БАБКИНА,МАРИЯ ,МАКСИМОВНА","С КОРОТОЯК УЛ СВОБОДЫ Д 90","0217","75,68","73,41","2,27","ХОЛОДНОЕ ВОДОСНАБЖЕНИЕ",""]
["15-02-2017","14-09-13","9013/00909","901300909","250592473430","000001602","НАЗАРОВ,ВЛАДИМИР ,ИЛЬИЧ","С КОРОТОЯК УЛ ПРОЛЕТАРСКАЯ Д 5","0217","343,32","333,02","10,30","ХОЛОДНОЕ ВОДОСНАБЖЕНИЕ",""]
["15-02-2017","14-13-00","9013/00909","901300909","250592493053","000001391","КОПЫЛОВ,А ,И","С ПОКРОВКА СПОРТИВНАЯ Д17","0217","84,56","82,02","2,54","ХОЛОДНОЕ ВОДОСНАБЖЕНИЕ","88"]
["15-02-2017","14-13-20","9013/00909","901300909","250592494878","000000346","СЕРТАКОВ,ВАЛЕРИЙ ,НИКОЛАЕВИЧ","С КОРОТОЯК УЛ КАРЛА МАРКСА Д 1А","0217","507,36","492,14","15,22","ХОЛОДНОЕ ВОДОСНАБЖЕНИЕ","556"]
["15-02-2017","14-14-46","9013/00909","901300909","250592502947","000001374","ШЕСТЕПЕРОВ,ВАЛЕНТИН ,ЮРЬЕВИЧ","С КОРОТОЯК УЛ КОМИНТЕРНА Д 13 КВ 6","0217","253,68","246,07","7,61","ХОЛОДНОЕ ВОДОСНАБЖЕНИЕ","207"]
["15-02-2017","14-16-16","9013/00909","901300909","200590413994","000001271","СКОМОРОХИН,ВЯЧЕСЛАВ ,ИВАНОВИЧ","С КОРОТОЯК УЛ Ф ЭНГЕЛЬСА Д 24А","0217","343,32","333,02","10,30","ХОЛОДНОЕ ВОДОСНАБЖЕНИЕ",""]
["15-02-2017","14-16-20","9013/00909","901300909","250592510848","000000948","ТРОФИМОВ,ПАВЕЛ ,ИВАНОВИЧ","С КОРОТОЯК УЛ НИЗОВАЯ Д 184","0217","166,58","161,58","5,00","ХОЛОДНОЕ ВОДОСНАБЖЕНИЕ",""]
["15-02-2017","14-23-03","9013/00909","901300909","200590448334","000000354","РЯУЗОВА,ИРИНА ,ЕВГЕНЬЕВНА","С КОРОТОЯК УЛ КАРЛА МАРКСА Д 10А","0217","126,84","123,03","3,81","ХОЛОДНОЕ ВОДОСНАБЖЕНИЕ","148"]
["15-02-2017","14-23-54","9013/00909","901300909V","200590452685","000414152","ШИПИЛОВ,СЕРГЕЙ ,АЛЕКСАНДРОВИЧ","С КОРОТОЯК УЛ ПРОЛЕТАРСКАЯ Д 20/1","0217","42,28","41,01","1,27","ХОЛОДНОЕ ВОДОСНАБЖЕНИЕ","28"]
["15-02-2017","14-24-58","9013/00909","901300909","200590458335","000001816","ТОЛСТИКОВ,ДМИТРИЙ ,ЕРОФЕЕВИЧ","С КОРОТОЯК ПРОСПЕКТ РЕВОЛЮЦИИ Д 10","0217","126,84","123,03","3,81","ХОЛОДНОЕ ВОДОСНАБЖЕНИЕ","261"]
["15-02-2017","14-29-18","9013/00909","9013009090","250592577211","000001608","ЗИНОВЬЕВА,НИНА ,МИХАЙЛОВНА","С КОРОТОЯК УЛ ПРОЛЕТАРСКАЯ Д 12","0217","253,68","246,07","7,61","ХОЛОДНОЕ ВОДОСНАБЖЕНИЕ","280"]
["15-02-2017","14-39-27","9013/00909","901300909","200590529122","000000144","ТРОФИМОВ,ВЛАДИМИР ,ПЕТРОВИЧ","С ПОКРОВКА УЛ КОММУНАРОВ Д 34","0217","126,84","123,03","3,81","ХОЛОДНОЕ ВОДОСНАБЖЕНИЕ","130"]
["15-02-2017","14-43-24","9013/00909","901300909","200590548113","000000140","ПОЛЕГАЕВА,ЕВДОКИЯ ,АФАНАСЬЕВНА","С ПОКРОВКА УЛ КОММУНАРОВ Д 38","0217","75,68","73,41","2,27","ХОЛОДНОЕ ВОДОСНАБЖЕНИЕ",""]
["15-02-2017","14-43-37","9013/00909","901300909","250592646593","000001517","РОНЬШИНА,А ,А","С УСПЕНСКОЕ УЛ БОЛХОВИТИНА Д167","0217","171,66","166,51","5,15","ХОЛОДНОЕ ВОДОСНАБЖЕНИЕ",""]
["15-02-2017","14-44-16","9013/00909","901300909","250592649753","000000133","ЛИПОВЦИНА,АННА ,ВАСИЛЬЕВНА","С ПОКРОВКА ВОСТОЧНЫЙ Д17","0217","84,56","82,02","2,54","ХОЛОДНОЕ ВОДОСНАБЖЕНИЕ","170"]
["15-02-2017","14-44-29","9013/00909","901300909","200590553171","000000816","БУШМАНОВ,АЛЕКСЕЙ ,НИКОЛАЕВИЧ","С ПОКРОВКА УЛ МОЛОДЕЖНАЯ Д 91","0217","211,40","205,06","6,34","ХОЛОДНОЕ ВОДОСНАБЖЕНИЕ","226"]
["15-02-2017","14-53-33","9013/00909","901300909","101501922047","000000993","ЖАЛЬСКИХ,ЕЛЕНА ,НИКОЛАЕВНА","С КОРОТОЯК УЛ ПРОЛЕТАРСКАЯ Д 32/3","0217","422,80","410,12","12,68","ХОЛОДНОЕ ВОДОСНАБЖЕНИЕ","357"]
["15-02-2017","15-06-37","9013/00909","901300909V","250592762506","000001809","ПАДАЛКИНА,ЛЮБОВЬ ,ПЕТРОВНА","С КОРОТОЯК УЛ НОВИКОВА Д 20","0217","422,80","410,12","12,68","ХОЛОДНОЕ ВОДОСНАБЖЕНИЕ","410"]
["15-02-2017","15-15-58","9013/00909","901300909","200590724470","000001286","СВИЩЕВА,НАДЕЖДА ,ИВАНОВНА","С КОРОТОЯК УЛ Ф ЭНГЕЛЬСА Д 33","0217","84,56","82,02","2,54","ХОЛОДНОЕ ВОДОСНАБЖЕНИЕ","59"]
["15-02-2017","15-26-22","9013/00909","901300909V","250592888186","000001345","СЕМЕНОВ,АЛЕКСАНДР ,ВЛАДИМИРОВИЧ","С КОРОТОЯК УЛ ЛЕНИНА Д 16","0217","84,56","82,02","2,54","ХОЛОДНОЕ ВОДОСНАБЖЕНИЕ","99"]
["15-02-2017","15-27-30","9013/00909","901300909V","250592895894","000001342","МИХАЙЛОВ,ВЛАДИМИР ,СТЕПАНОВИЧ","С КОРОТОЯК УЛ ЛЕНИНА Д 4","0217","126,84","123,03","3,81","ХОЛОДНОЕ ВОДОСНАБЖЕНИЕ","202"]
["15-02-2017","15-30-46","9013","9013999V","101501972561","000004575","ЛЮБУЦЫНА,И , Ф","С ПЕТРОПАВЛОВКА УЛ СВОБОДЫ Д 4","0217","295,96","293,00","2,96","ХОЛОДНОЕ ВОДОСНАБЖЕНИЕ",""]
["=60","11671,42","11331,39","340,03","869011","16-02-2017",""]